fUSD/lending_fUSD_20240614
["ID","MTS","AMOUNT","RATE_DAILY","PERIOD"]
[329510703,1718409144173,-1042.03,0.00024109,3]
[329510704,1718409144193,-153.48233137,0.0002411,2]
[329510705,1718409144204,-150.0,0.00024118,2]
[329510706,1718409144223,-150.0,0.0002413,2]
[329510707,1718409144261,-150.0,0.00024133,2]
[329510708,1718409144292,-2340.74889455,0.00024135,2]
[329510709,1718409144309,-177.90534913,0.00024143,2]
[329510710,1718409144346,-150.0,0.00024151,2]
[329510711,1718409144364,-150.0,0.0002416,2]
[329510712,1718409144414,-177.90534913,0.00024162,2]
[329510713,1718409144450,-2507.67,0.00024166,2]
[329510714,1718409144492,-154.60031802,0.00024169,2]
[329510715,1718409144505,-159.81272,0.00024198,2]
[329510716,1718409144520,-150.0,0.000242,4]
[329510717,1718409144554,-203.67017798,0.00024207,2]
[329510718,1718409144568,-150.0,0.00024215,2]
[329510719,1718409144592,-150.0,0.00024219,2]
[329510720,1718409144604,-153.83063425,0.0002422,2]
[329510721,1718409144625,-180.0,0.0002423,2]
[329510722,1718409144638,-453.84,0.00024234,2]
[329510723,1718409144659,-150.0,0.00024235,2]
[329510724,1718409144669,-150.0,0.00024267,2]
[329510725,1718409144681,-150.0,0.00024269,2]
[329510726,1718409144701,-457.50732763,0.00024277,2]
[329510727,1718409144714,-150.0,0.00024282,2]
[329510728,1718409144727,-228.55033617,0.00024292,2]
[329510729,1718409144756,-586.37063159,0.00024294,2]
[329510730,1718409144793,-997.96,0.000243,2]
[329510731,1718409144813,-318.4,0.000243,2]
[329510732,1718409144841,-173.209282,0.00024317,2]
[329510733,1718409144864,-736.814141,0.00024317,2]
[329510734,1718409144937,-485.376602,0.00024317,2]
[329510735,1718409144954,-186.71212,0.00024317,2]
[329510736,1718409144968,-496.646376,0.00024317,2]
[329510737,1718409144983,-1395.835234,0.00024317,2]
[329510738,1718409145007,-158.890655,0.00024317,2]
[329510739,1718409145037,-188.647897,0.00024317,2]
[329510740,1718409145066,-181.11284,0.00024317,2]
[329510741,1718409145084,-2008.001876,0.00024317,2]
[329510742,1718409145096,-187.258411,0.00024317,2]
[329510743,1718409145124,-198.61332,0.00024317,2]
[329510744,1718409145146,-5234.382128,0.00024317,2]
[329510745,1718409145160,-2768.624467,0.00024317,2]
[329510746,1718409145176,-158.943114,0.00024317,2]
[329510747,1718409145186,-164.441197,0.00024317,2]
[329510748,1718409145201,-180.999396,0.00024317,2]
[329510749,1718409145214,-190.461821,0.00024317,2]
[329510750,1718409145230,-5015.913168,0.00024317,2]
[329510751,1718409145255,-4918.870319,0.00024317,2]
[329510752,1718409145293,-247.35273,0.00024317,2]
[329510753,1718409145306,-150.0,0.0002432,2]
[329510754,1718409145334,-285.59063,0.00024324,2]
[329510755,1718409145359,-150.0,0.00024328,2]
[329510756,1718409145409,-2000.0,0.00024329,2]
[329510757,1718409145440,-200.0,0.00024329,2]
[329510758,1718409145458,-447.40192806,0.00024329,2]
[329510759,1718409145479,-200.0,0.00024329,2]
[329510760,1718409145496,-300.0,0.00024332,2]
[329510761,1718409145524,-150.0,0.0002435,2]
[329510762,1718409145538,-577.87975608,0.00024362,2]
[329510763,1718409145557,-150.0,0.00024363,2]
[329510764,1718409145570,-211.5184763,0.00024381,2]
[329510765,1718409145589,-206.05334607,0.00024383,3]
[329510766,1718409145600,-500.0,0.00024383,3]
[329510767,1718409145621,-500.0,0.00024383,3]
[329510768,1718409145640,-749.79,0.00024383,3]
[329510769,1718409145658,-500.0,0.00024383,3]
[329510770,1718409145670,-500.0,0.00024383,3]
[329510771,1718409145683,-500.0,0.00024383,3]
[329510772,1718409145728,-600.48,0.00024383,3]
[329510773,1718409145748,-500.0,0.00024383,3]
[329510774,1718409145762,-500.0,0.00024383,3]
[329510775,1718409145774,-2000.0,0.00024383,3]
[329510776,1718409145797,-165.23657358,0.00024383,3]
[329510777,1718409145813,-500.0,0.00024383,3]
[329510778,1718409145849,-500.0,0.00024383,3]
[329510779,1718409145865,-327.34781584,0.00024383,3]
[329510780,1718409145877,-500.0,0.00024383,3]
[329510781,1718409145890,-500.0,0.00024383,3]
[329510782,1718409145906,-500.0,0.00024383,3]
[329510783,1718409145920,-500.0,0.00024383,3]
[329510784,1718409145934,-500.0,0.00024383,3]
[329510785,1718409145946,-1018.08,0.00024383,3]
[329510786,1718409145956,-500.0,0.00024383,3]
[329510787,1718409145969,-500.0,0.00024383,3]
[329510788,1718409145984,-591.45,0.00024383,3]
[329510789,1718409145996,-500.0,0.00024383,3]
[329510790,1718409146007,-500.0,0.00024383,3]
[329510791,1718409146047,-500.0,0.00024383,3]
[329510792,1718409146060,-500.0,0.00024383,3]
[329510793,1718409146074,-500.0,0.00024383,3]
[329510794,1718409146085,-500.0,0.00024383,3]
[329510795,1718409146096,-500.0,0.00024383,3]
[329510796,1718409146109,-500.0,0.00024383,3]
[329510797,1718409146127,-343.82,0.00024383,3]
[329510798,1718409146150,-500.0,0.00024383,3]
[329510799,1718409146165,-1175.7,0.00024383,3]
[329510800,1718409146207,-500.0,0.00024383,3]
[329510801,1718409146238,-570.48,0.00024383,3]
[329510802,1718409146258,-500.0,0.00024383,3]
[329510803,1718409146283,-1691.46,0.00024383,3]
[329510804,1718409146296,-500.0,0.00024383,3]
[329510805,1718409146312,-24506.13,0.00024383,3]
[329510806,1718409146329,-777.76,0.00024383,3]
[329510807,1718409146346,-1854.16,0.00024383,3]
[329510808,1718409146358,-1055.98,0.00024383,3]
[329510809,1718409146370,-1198.09,0.00024383,3]
[329510810,1718409146384,-500.0,0.00024383,3]
[329510811,1718409146399,-500.0,0.00024383,3]
[329510812,1718409146416,-500.0,0.00024383,3]
[329510813,1718409146437,-516.41,0.00024383,3]
[329510814,1718409146453,-500.0,0.00024383,3]
[329510815,1718409146484,-615.26,0.00024383,3]
[329510816,1718409146499,-6231.18,0.00024383,3]
[329510817,1718409146520,-1046.77,0.00024383,3]
[329510818,1718409146561,-3586.27,0.00024383,3]
[329510819,1718409146574,-561.85,0.00024383,3]
[329510820,1718409146591,-968.93,0.00024383,3]
[329510821,1718409146609,-1857.88,0.00024383,3]
[329510822,1718409146622,-2183.55,0.00024383,3]
[329510823,1718409146635,-844.51,0.00024383,3]
[329510824,1718409146647,-500.0,0.00024383,3]
[329510825,1718409146659,-836.87,0.00024383,3]
[329510826,1718409146675,-217.95482953,0.00024383,3]
[329510827,1718409146690,-500.0,0.00024383,3]
[329510828,1718409146702,-1991.89,0.00024383,3]
[329510829,1718409146713,-500.0,0.00024383,3]
[329510830,1718409146732,-500.0,0.00024383,3]
[329510831,1718409146769,-5690.91,0.00024383,3]
[329510832,1718409146782,-969.41,0.00024383,3]
[329510833,1718409146797,-500.0,0.00024383,3]
[329510834,1718409146811,-20167.93,0.00024383,3]
[329510835,1718409146856,-18610.37,0.00024383,3]
[329510836,1718409146880,-1674.49,0.00024383,3]
[329510837,1718409146928,-3030.53,0.00024383,3]
[329510838,1718409146942,-575.07,0.00024383,3]
[329510839,1718409146955,-500.0,0.00024383,3]
[329510840,1718409146970,-966.56,0.00024383,3]
[329510841,1718409146986,-775.23,0.00024383,3]
[329510842,1718409147013,-598.46,0.00024383,3]
[329510843,1718409147043,-1655.24,0.00024383,3]
[329510844,1718409147072,-2076.84,0.00024383,3]
[329510845,1718409147084,-682.08,0.00024383,3]
[329510846,1718409147112,-1822.84,0.00024383,3]
[329510847,1718409147123,-5529.61,0.00024383,3]
[329510848,1718409147168,-786.01,0.00024383,3]
[329510849,1718409147183,-3184.07,0.00024383,3]
[329510850,1718409147200,-574.58,0.00024383,3]
[329510851,1718409147260,-11746.88,0.00024383,3]
[329510852,1718409147307,-662.27,0.00024383,3]
[329510853,1718409147352,-658.84,0.00024383,3]
[329510854,1718409147428,-6064.15,0.00024383,3]
[329510855,1718409147440,-1212.45,0.00024383,3]
[329510856,1718409147469,-500.0,0.00024383,3]
[329510857,1718409147484,-1250.84,0.00024383,3]
[329510858,1718409147512,-1457.35,0.00024383,3]
[329510859,1718409147547,-2523.73,0.00024383,3]
[329510860,1718409147559,-521.47,0.00024383,3]
[329510861,1718409147601,-500.0,0.00024383,3]
[329510862,1718409147624,-699.17,0.00024383,3]
[329510863,1718409147640,-500.0,0.00024383,3]
[329510864,1718409147678,-500.0,0.00024383,3]
[329510865,1718409147694,-896.88,0.00024383,3]
[329510866,1718409147729,-1061.25,0.00024383,3]
[329510867,1718409147753,-500.0,0.00024383,3]
[329510868,1718409147771,-669.5,0.00024383,3]
[329510869,1718409147801,-500.0,0.00024383,3]
[329510870,1718409147823,-532.32,0.00024383,3]
[329510871,1718409147838,-2252.2,0.00024383,3]
[329510872,1718409147858,-1329.78,0.00024383,3]
[329510873,1718409147905,-889.55,0.00024383,3]
[329510874,1718409147941,-500.0,0.00024383,3]
[329510875,1718409147968,-726.83,0.00024383,3]
[329510876,1718409147993,-500.0,0.00024383,3]
[329510877,1718409148029,-1121.95,0.00024383,3]
[329510878,1718409148040,-500.0,0.00024383,3]
[329510879,1718409148108,-2002.63,0.00024383,3]
[329510880,1718409148129,-635.93,0.00024383,3]
[329510881,1718409148160,-500.0,0.00024383,3]
[329510882,1718409148172,-749.23,0.00024383,3]
[329510883,1718409148205,-1297.0,0.00024383,3]
[329510884,1718409148215,-1013.7,0.00024383,3]
[329510885,1718409148289,-1218.43,0.00024383,3]
[329510886,1718409148361,-500.0,0.00024383,3]
[329510887,1718409148400,-814.13,0.00024383,3]
[329510888,1718409148412,-1069.53,0.00024383,3]
[329510889,1718409148423,-500.0,0.00024383,3]
[329510890,1718409148452,-2089.69,0.00024383,3]
[329510891,1718409148476,-500.0,0.00024383,3]
[329510892,1718409148524,-500.0,0.00024383,3]
[329510893,1718409148535,-728.21,0.00024383,3]
[329510894,1718409148584,-4506.65,0.00024383,3]
[329510895,1718409148614,-505.75,0.00024383,3]
[329510896,1718409148631,-1722.19,0.00024383,3]
[329510897,1718409148642,-500.0,0.00024383,3]
[329510898,1718409148653,-1029.14,0.00024383,3]
[329510899,1718409148664,-1126.29,0.00024383,3]
[329510900,1718409148682,-1013.4,0.00024383,3]
[329510901,1718409148738,-690.09,0.00024383,3]
[329510902,1718409148777,-2735.56,0.00024383,3]
[329510903,1718409148831,-412.52,0.00024383,3]
[329510904,1718409148927,-500.0,0.00024383,3]
[329510905,1718409148978,-725.51,0.00024383,3]
[329510906,1718409149004,-2174.79,0.00024383,3]
[329510907,1718409149025,-500.0,0.00024383,3]
[329510908,1718409149045,-500.0,0.00024383,3]
[329510909,1718409149077,-3237.71,0.00024383,3]
[329510910,1718409149090,-817.48,0.00024383,3]
[329510911,1718409149164,-2378.83,0.00024383,3]
[329510912,1718409149191,-692.48,0.00024383,3]
[329510913,1718409149204,-500.0,0.00024383,3]
[329510914,1718409149222,-1135.87,0.00024383,3]
[329510915,1718409149243,-500.0,0.00024383,3]
[329510916,1718409149262,-623.34,0.00024383,3]
[329510917,1718409149277,-1042.03,0.00024383,3]
[329510918,1718409149308,-458.65913121,0.00024383,3]
[329510919,1718409149318,-284.47,0.00024384,2]
[329510920,1718409149330,-157.61,0.00024384,2]
[329510921,1718409149342,-591.92,0.00024384,2]
[329510922,1718409149353,-150.0,0.00024392,2]
[329510923,1718409149365,-153.48233137,0.00024392,2]
[329510924,1718409149378,-4928.91154559,0.00024392,2]
[329510925,1718409149414,-160.92444028,0.00024393,2]
[329510926,1718409149429,-150.0,0.00024397,2]
[329510927,1718409149448,-150.0,0.00024403,2]
[329510928,1718409149488,-150.0,0.00024407,2]
[329510929,1718409149500,-155.85640551,0.00024418,2]
[329510930,1718409149536,-153.48233137,0.00024419,2]
[329510931,1718409149549,-1500.0,0.00024441,2]
[329510932,1718409149561,-2502.2,0.00024446,2]
[329510933,1718409149577,-345.07952264,0.00024448,2]
[329510934,1718409149607,-3512.46118545,0.00024448,2]
[329510935,1718409149636,-154.43145431,0.00024461,2]
[329510936,1718409149660,-150.0,0.00024468,2]
[329510937,1718409149716,-150.0,0.00024476,2]
[329510938,1718409149730,-457.50732763,0.0002448,2]
[329510939,1718409149772,-577.87975608,0.00024482,2]
[329510940,1718409149813,-150.0,0.00024495,2]
[329510941,1718409149836,-150.0,0.00024497,2]
[329510942,1718409149874,-1400.0,0.000245,3]
[329510943,1718409149888,-20035.0,0.000245,2]
[329510944,1718409149930,-153.04376479,0.00024503,2]
[329510945,1718409149956,-2340.74889455,0.00024511,2]
[329510946,1718409149978,-150.0,0.00024516,2]
[329510947,1718409149989,-150.0,0.00024529,2]
[329510948,1718409150010,-150.0,0.00024538,2]
[329510949,1718409150061,-2340.74889455,0.00024555,2]
[329510950,1718409150074,-12338.52293741,0.00024567,2]
[329510951,1718409150104,-166.66666667,0.00024568,2]
[329510952,1718409150301,-2000.0,0.00024572,2]
[329510953,1718409150337,-200.0,0.00024572,2]
[329510954,1718409150359,-200.0,0.00024572,2]
[329510955,1718409150384,-150.0,0.00024575,2]
[329510956,1718409150414,-150.0,0.00024582,2]
[329510957,1718409150428,-1500.0,0.00024582,2]
[329510958,1718409150440,-150.0,0.00024587,2]
[329510959,1718409150459,-150.0,0.00024592,2]
[329510960,1718409150489,-150.0,0.00024619,2]
[329510961,1718409150516,-153.83063425,0.00024619,2]
[329510962,1718409150556,-911.35,0.00024621,2]
[329510963,1718409150584,-150.0,0.00024621,2]
[329510964,1718409150612,-736.814141,0.00024621,2]
[329510965,1718409150625,-485.376602,0.00024621,2]
[329510966,1718409150652,-496.646376,0.00024621,2]
[329510967,1718409150680,-1395.835234,0.00024621,2]
[329510968,1718409150704,-2008.001876,0.00024621,2]
[329510969,1718409150716,-5234.382128,0.00024621,2]
[329510970,1718409150735,-2768.624467,0.00024621,2]
[329510971,1718409150747,-5015.913168,0.00024621,2]
[329510972,1718409150773,-4918.870319,0.00024621,2]
[329510973,1718409150800,-247.35273,0.00024621,2]
[329510974,1718409150816,-150.0,0.00024624,2]
[329510975,1718409150829,-150.0,0.00024628,2]
[329510976,1718409150840,-285.59063,0.00024628,2]
[329510977,1718409150854,-2340.74889455,0.00024639,2]
[329510978,1718409150865,-150.0,0.00024653,2]
[329510979,1718409150882,-457.50732763,0.00024654,2]
[329510980,1718409150933,-500.0,0.00024657,3]
[329510981,1718409150947,-500.0,0.00024657,3]
[329510982,1718409150963,-749.79,0.00024657,3]
[329510983,1718409151005,-500.0,0.00024657,3]
[329510984,1718409151026,-500.0,0.00024657,3]
[329510985,1718409151043,-500.0,0.00024657,3]
[329510986,1718409151074,-600.48,0.00024657,3]
[329510987,1718409151130,-500.0,0.00024657,3]
[329510988,1718409151163,-500.0,0.00024657,3]
[329510989,1718409151200,-2000.0,0.00024657,3]
[329510990,1718409151220,-500.0,0.00024657,3]
[329510991,1718409151234,-448.40535585,0.00024657,3]
[329510992,1718409151264,-500.0,0.00024657,3]
[329510993,1718409151301,-500.0,0.00024657,3]
[329510994,1718409151320,-500.0,0.00024657,3]
[329510995,1718409151365,-500.0,0.00024657,3]
[329510996,1718409151379,-500.0,0.00024657,3]
[329510997,1718409151391,-1018.08,0.00024657,3]
[329510998,1718409151411,-500.0,0.00024657,3]
[329510999,1718409151422,-179.31226249,0.00024657,3]
[329511000,1718409151440,-451.48347536,0.00024657,3]
[329511001,1718409151454,-500.0,0.00024657,3]
[329511002,1718409151497,-500.0,0.00024657,3]
[329511003,1718409151508,-500.0,0.00024657,3]
[329511004,1718409151526,-500.0,0.00024657,3]
[329511005,1718409151538,-500.0,0.00024657,3]
[329511006,1718409151570,-500.0,0.00024657,3]
[329511007,1718409151585,-500.0,0.00024657,3]
[329511008,1718409151604,-495.39,0.00024657,3]
[329511009,1718409151622,-1175.7,0.00024657,3]
[329511010,1718409151640,-500.0,0.00024657,3]
[329511011,1718409151668,-500.0,0.00024657,3]
[329511012,1718409151715,-1691.46,0.00024657,3]
[329511013,1718409151748,-500.0,0.00024657,3]
[329511014,1718409151770,-24506.13,0.00024657,3]
[329511015,1718409151808,-777.76,0.00024657,3]
[329511016,1718409151824,-1854.16,0.00024657,3]
[329511017,1718409151837,-1055.98,0.00024657,3]
[329511018,1718409151876,-1198.09,0.00024657,3]
[329511019,1718409151928,-500.0,0.00024657,3]
[329511020,1718409151950,-500.0,0.00024657,3]
[329511021,1718409151962,-500.0,0.00024657,3]
[329511022,1718409151981,-516.41,0.00024657,3]
[329511023,1718409152021,-221.93,0.00024657,3]
[329511024,1718409152060,-615.26,0.00024657,3]
[329511025,1718409152077,-203.67017798,0.00024657,2]
[329511026,1718409152093,-6231.18,0.00024657,3]
[329511027,1718409152104,-1046.77,0.00024657,3]
[329511028,1718409152114,-3586.27,0.00024657,3]
[329511029,1718409152152,-561.85,0.00024657,3]
[329511030,1718409152185,-968.93,0.00024657,3]
[329511031,1718409152254,-1857.88,0.00024657,3]
[329511032,1718409152267,-2183.55,0.00024657,3]
[329511033,1718409152292,-844.51,0.00024657,3]
[329511034,1718409152304,-836.87,0.00024657,3]
[329511035,1718409152315,-500.0,0.00024657,3]
[329511036,1718409152360,-500.0,0.00024657,3]
[329511037,1718409152380,-1991.89,0.00024657,3]
[329511038,1718409152425,-500.0,0.00024657,3]
[329511039,1718409152439,-500.0,0.00024657,3]
[329511040,1718409152466,-5690.91,0.00024657,3]
[329511041,1718409152479,-969.41,0.00024657,3]
[329511042,1718409152515,-500.0,0.00024657,3]
[329511043,1718409152587,-18610.37,0.00024657,3]
[329511044,1718409152599,-20167.93,0.00024657,3]
[329511045,1718409152640,-1674.49,0.00024657,3]
[329511046,1718409152668,-3030.53,0.00024657,3]
[329511047,1718409152680,-575.07,0.00024657,3]
[329511048,1718409152691,-500.0,0.00024657,3]
[329511049,1718409152745,-966.56,0.00024657,3]
[329511050,1718409152776,-775.23,0.00024657,3]
[329511051,1718409152788,-598.46,0.00024657,3]
[329511052,1718409152801,-1655.24,0.00024657,3]
[329511053,1718409152818,-2076.84,0.00024657,3]
[329511054,1718409152831,-682.08,0.00024657,3]
[329511055,1718409152872,-1822.84,0.00024657,3]
[329511056,1718409152883,-5529.61,0.00024657,3]
[329511057,1718409152899,-786.01,0.00024657,3]
[329511058,1718409152939,-3184.07,0.00024657,3]
[329511059,1718409152964,-574.58,0.00024657,3]
[329511060,1718409152992,-11746.88,0.00024657,3]
[329511061,1718409153005,-662.27,0.00024657,3]
[329511062,1718409153076,-658.84,0.00024657,3]
[329511063,1718409153104,-6064.15,0.00024657,3]
[329511064,1718409153116,-1212.45,0.00024657,3]
[329511065,1718409153181,-500.0,0.00024657,3]
[329511066,1718409153320,-1250.84,0.00024657,3]
[329511067,1718409153344,-1457.35,0.00024657,3]
[329511068,1718409153358,-2523.73,0.00024657,3]
[329511069,1718409153370,-521.47,0.00024657,3]
[329511070,1718409153381,-500.0,0.00024657,3]
[329511071,1718409153392,-699.17,0.00024657,3]
[329511072,1718409153408,-500.0,0.00024657,3]
[329511073,1718409153421,-500.0,0.00024657,3]
[329511074,1718409153436,-896.88,0.00024657,3]
[329511075,1718409153459,-1061.25,0.00024657,3]
[329511076,1718409153472,-500.0,0.00024657,3]
[329511077,1718409153485,-669.5,0.00024657,3]
[329511078,1718409153504,-500.0,0.00024657,3]
[329511079,1718409153538,-532.32,0.00024657,3]
[329511080,1718409153564,-2252.2,0.00024657,3]
[329511081,1718409153575,-1329.78,0.00024657,3]
[329511082,1718409153585,-889.55,0.00024657,3]
[329511083,1718409153595,-190.82195932,0.00024657,3]
[329511084,1718409153611,-726.83,0.00024657,3]
[329511085,1718409153624,-500.0,0.00024657,3]
[329511086,1718409153649,-1121.95,0.00024657,3]
[329511087,1718409153667,-500.0,0.00024657,3]
[329511088,1718409153686,-2002.63,0.00024657,3]
[329511089,1718409153699,-635.93,0.00024657,3]
[329511090,1718409153711,-500.0,0.00024657,3]
[329511091,1718409153722,-749.23,0.00024657,3]
[329511092,1718409153738,-1297.0,0.00024657,3]
[329511093,1718409153763,-1013.7,0.00024657,3]
[329511094,1718409153816,-1218.43,0.00024657,3]
[329511095,1718409153830,-500.0,0.00024657,3]
[329511096,1718409153843,-814.13,0.00024657,3]
[329511097,1718409153859,-1069.53,0.00024657,3]
[329511098,1718409153873,-2089.69,0.00024657,3]
[329511099,1718409153885,-500.0,0.00024657,3]
[329511100,1718409153901,-500.0,0.00024657,3]
[329511101,1718409153917,-500.0,0.00024657,3]
[329511102,1718409153930,-728.21,0.00024657,3]
[329511103,1718409153945,-4506.65,0.00024657,3]
[329511104,1718409153958,-505.75,0.00024657,3]
[329511105,1718409153988,-1722.19,0.00024657,3]
[329511106,1718409154017,-500.0,0.00024657,3]
[329511107,1718409154081,-1029.14,0.00024657,3]
[329511108,1718409154122,-1126.29,0.00024657,3]
[329511109,1718409154228,-1013.4,0.00024657,3]
[329511110,1718409154254,-690.09,0.00024657,3]
[329511111,1718409154267,-500.0,0.00024657,3]
[329511112,1718409154285,-2735.56,0.00024657,3]
[329511113,1718409154298,-725.51,0.00024657,3]
[329511114,1718409154314,-2174.79,0.00024657,3]
[329511115,1718409154330,-500.0,0.00024657,3]
[329511116,1718409154404,-500.0,0.00024657,3]
[329511117,1718409154435,-3237.71,0.00024657,3]
[329511118,1718409154452,-817.48,0.00024657,3]
[329511119,1718409154464,-2378.83,0.00024657,3]
[329511120,1718409154476,-692.48,0.00024657,3]
[329511121,1718409154486,-170.77891387,0.00024657,3]
[329511122,1718409154527,-1135.87,0.00024657,3]
[329511123,1718409154554,-500.0,0.00024657,3]
[329511124,1718409154569,-623.34,0.00024657,3]
[329511125,1718409154604,-1042.03,0.00024657,3]
[329511126,1718409154625,-151.0,0.00024658,7]
[329511127,1718409154644,-151.0,0.00024658,7]
[329511128,1718409154666,-151.0,0.00024658,7]
[329511129,1718409154678,-151.0,0.00024658,7]
[329511130,1718409154695,-203.617492,0.00024658,7]
[329511131,1718409154724,-151.0,0.00024658,7]
[329511132,1718409154764,-151.0,0.00024658,7]
[329511133,1718409154800,-157.029632,0.00024658,7]
[329511134,1718409154812,-1500.0,0.00024662,2]
[329511135,1718409154827,-152.06773046,0.00024662,2]
[329511136,1718409154850,-230.41188732,0.00024667,2]
[329511137,1718409154996,-160.92444028,0.00024669,2]
[329511138,1718409155008,-168.96738456,0.0002467,2]
[329511139,1718409155042,-150.0,0.00024686,2]
[329511140,1718409155060,-453.85,0.00024687,2]
[329511141,1718409155072,-153.54318877,0.00024692,2]
[329511142,1718409155115,-150.0,0.000247,4]
[329511143,1718409155130,-457.50732763,0.00024701,2]
[329511144,1718409155149,-152.0,0.00024712,4]
[329511145,1718409155177,-2340.74889455,0.00024714,2]
[329511146,1718409155190,-577.87975608,0.00024719,2]
[329511147,1718409155223,-150.0,0.00024721,2]
[329511148,1718409155234,-167.14290052,0.00024724,2]
[329511149,1718409155248,-150.0,0.00024736,2]
[329511150,1718409155272,-2507.67,0.00024744,2]
[329511151,1718409155286,-2340.74889455,0.00024762,2]
[329511152,1718409155298,-346.68116762,0.00024772,2]
[329511153,1718409155309,-150.0,0.00024774,2]
[329511154,1718409155320,-1741.12770755,0.00024787,2]
[329511155,1718409155332,-577.87975608,0.00024787,2]
[329511156,1718409155342,-2502.2,0.00024789,2]
[329511157,1718409155353,-150.0,0.00024789,2]
[329511158,1718409155377,-448.15573359,0.00024792,2]
[329511159,1718409155402,-49677.08449873,0.00024798,2]
[329511160,1718409155414,-49677.0844987,0.00024798,2]
[329511161,1718409155451,-49677.0844987,0.00024798,2]
[329511162,1718409155493,-49677.0844987,0.00024798,2]
[329511163,1718409155506,-49677.0844987,0.00024798,2]
[329511164,1718409155517,-49677.0844987,0.00024798,2]
[329511165,1718409155527,-49677.0844987,0.00024798,2]
[329511166,1718409155540,-17526.77639755,0.00024799,2]
[329511167,1718409155552,-17526.77639752,0.00024799,2]
[329511168,1718409155567,-17526.77639752,0.00024799,2]
[329511169,1718409155582,-17526.77639752,0.00024799,2]
[329511170,1718409155599,-17526.77639752,0.00024799,2]
[329511171,1718409155613,-17526.77639752,0.00024799,2]
[329511172,1718409155624,-17526.77639752,0.00024799,2]
[329511173,1718409155636,-1144.0565368,0.00024818,2]
[329511174,1718409155648,-200.0,0.00024818,2]
[329511175,1718409155671,-150.0,0.00024818,2]
[329511176,1718409155682,-346.68116762,0.00024819,2]
[329511177,1718409155693,-150.38481616,0.00024861,2]
[329511178,1718409155704,-150.0,0.0002487,2]
[329511179,1718409155716,-150.0,0.00024884,2]
[329511180,1718409155729,-150.0,0.00024885,2]
[329511181,1718409155757,-150.0,0.00024886,2]
[329511182,1718409155772,-150.0,0.00024894,2]
[329511183,1718409155800,-346.68116762,0.00024899,2]
[329511184,1718409155813,-6803.82836973,0.000249,2]
[329511185,1718409155836,-155.0,0.000249,2]
[329511186,1718409155861,-167.14290052,0.00024903,2]
[329511187,1718409155873,-150.0,0.00024904,2]
[329511188,1718409155888,-997.96,0.00024905,2]
[329511189,1718409155903,-150.0,0.00024906,2]
[329511190,1718409155925,-203.67017798,0.00024913,2]
[329511191,1718409155942,-736.814141,0.00024925,2]
[329511192,1718409155986,-485.376602,0.00024925,2]
[329511193,1718409156015,-496.646376,0.00024925,2]
[329511194,1718409156037,-1395.835234,0.00024925,2]
[329511195,1718409156061,-2008.001876,0.00024925,2]
[329511196,1718409156074,-5234.382128,0.00024925,2]
[329511197,1718409156085,-2768.624467,0.00024925,2]
[329511198,1718409156102,-164.441197,0.00024925,2]
[329511199,1718409156117,-5015.913168,0.00024925,2]
[329511200,1718409156129,-4918.870319,0.00024925,2]
[329511201,1718409156140,-247.35273,0.00024925,2]
[329511202,1718409156155,-237.0,0.0002493,9]